Cogmind - Beta 13 @@@ ROGUE MODE // 2024.05.03 @ 18:16:48 Player: dp-fld Result: Destroyed by D-53 Grenadier with Mini Grenade Launcher Performance ------------- Evolutions (0) 0 Regions Visited (4) 800 Robots Destroyed (20) 100 Value Destroyed (384) 384 Prototype IDs (25) 500 Alien Tech Used (0) 0 Bonus (300) 300 TOTAL SCORE: 2084 Bonus ------- Aligned with FarCom 300 Cogmind --------- Core Integrity 0/250 Matter 195/300 Energy 98/100 System Corruption 4% Temperature Cool (1) Movement Walking (120) Location -9/Mines Parts ------- > --- POWER (1) -------- (None) > --- PROPULSION (2) --- Improved Aluminum Leg > --- UTILITY (2) ------ Medium Storage Unit > --- WEAPON (2) ------- (None) > --- INVENTORY (10) --- Fission Core Aluminum Leg Large Storage Unit Modified TNC Mini Grenade Launcher Mini Grenade Launcher Peak State ------------ > --- POWER ------------ Ion Engine > --- PROPULSION ------- Improved Aluminum Leg Improved Aluminum Leg > --- UTILITY ---------- Heat Sink Medium Storage Unit > --- WEAPON ----------- Spread Laser Mini Grenade Launcher > --- INVENTORY -------- Ion Engine Aluminum Leg Improved Aluminum Leg Improved Aluminum Leg Large Storage Unit Seismic Detector Modified TNC Spread Laser Mini Grenade Launcher Mini Grenade Launcher [Rating: 13] Favorites ----------- Power Ion Engine Engine Ion Engine Propulsion Improved Aluminum Leg Leg Improved Aluminum Leg Utility Heat Sink Device Heat Sink Storage Medium Storage Unit Weapon Spread Laser Energy Gun Spread Laser Ballistic Gun Assault Rifle Launcher Mini Grenade Launcher Build | -11 -10 -10 -10 -9 ------- Run | Yrd Mat Min Exi Min Slots Evolved . | . . . . . Power . | . . . . . Propulsion . | . . . . . Utility . | . . . . . Weapon . | . . . . . Parts Attached 23 | 1 16 . 2 4 Power 2 | . 1 . . 1 Engine 2 | . 1 . . 1 Core . | . . . . . Reactor . | . . . . . Propulsion 5 | . 3 . . 2 Treads . | . . . . . Leg 5 | . 3 . . 2 Wheel . | . . . . . Hover . | . . . . . Flight . | . . . . . Utility 6 | 1 3 . 2 . Device 3 | 1 2 . . . Storage 3 | . 1 . 2 . Processor . | . . . . . Hackware . | . . . . . Protection . | . . . . . Artifact . | . . . . . Weapon 10 | . 9 . . 1 Energy Gun 7 | . 6 . . 1 Energy Cannon . | . . . . . Ballistic Gun . | . . . . . Ballistic Cannon . | . . . . . Launcher 3 | . 3 . . . Special Weapon . | . . . . . Impact Weapon . | . . . . . Slashing Weapon . | . . . . . Piercing Weapon . | . . . . . Special Melee Weapon . | . . . . . Unidentified Prototypes . | . . . . . Parts Lost 9 | . . . . 9 Power 2 | . . . . 2 Propulsion 3 | . . . . 3 Utility 1 | . . . . 1 Weapon 3 | . . . . 3 Highest Loss Streak 9 | . . . . 9 To Critical Strikes . | . . . . . Average Slot Usage (%) 98 | . 99 100 100 72 Engine 13 | . 14 14 14 10 Leg 27 | . 27 28 28 20 Device 13 | . 14 14 14 3 Storage 14 | . 14 14 14 14 Energy Gun 21 | . 26 14 14 10 Launcher 6 | . . 14 14 12 Naked Turns . | . . . . . Heaviest Build 30 | 12 22 20 30 20 Greatest Support 26 | 20 26 26 26 26 Greatest Overweight (x) 1 | . . . 1 1 Average Overweight (x) . | . . . . . Largest Inventory Capacity 15 | 8 10 10 15 10 Average Capacity 9 | 8 8 10 10 10 Most Carried 10 | 8 10 10 10 10 Average Carried 8 | 6 8 10 9 8 Final Capacity 10 | 8 10 10 10 10 Final Carried 10 | 8 10 10 10 6 Class Distribution -------------------- 100% | Mutant Dominant Class ---------------- Mutant | -10/Materials Mutant | -10/Mines Mutant | -10/Exiles Mutant | -9/Mines Resources | -11 -10 -10 -10 -9 ----------- Run | Yrd Mat Min Exi Min Matter Collected 435 | 225 188 12 10 . Remotely . | . . . . . Salvage Created 492 | 61 378 15 . 38 Parts 33 | 6 24 3 . . Haulers Intercepted 2 | . 2 . . . Recyclers Shooed . | . . . . . Parts Field Recycled . | . . . . . Retrieved Matter . | . . . . . Parts Self-Destructed . | . . . . . Prevented . | . . . . . Kills | -11 -10 -10 -10 -9 ------- Run | Yrd Mat Min Exi Min Combat Hostiles Destroyed 24 | . 11 3 . 10 Guns 9 | . 7 1 . 1 AOE 15 | . 4 2 . 9 Classes Destroyed 6 | 1 4 . . 1 Worker 1 | . 1 . . . Tunneler 3 | 3 . . . . Hauler 2 | . 2 . . . Swarmer 6 | . 3 3 . . Grunt 8 | . 8 . . . Assembled 10 | . . . . 10 Best Kill Streak 10 | 1 6 3 . 10 Combat Bots Only 10 | . 6 3 . 10 Max Kills in Single Turn 2 | 1 1 2 . 2 Gunslinging . | . . . . . Exploded 2 | . 1 2 . 2 Melee . | . . . . . Uniques/NPCs Destroyed . | . . . . . Combat | -11 -10 -10 -10 -9 -------- Run | Yrd Mat Min Exi Min Hostile Shots Fired 69 | . 27 8 . 34 Missed 19 | . 10 3 . 6 Damage Taken 1175 | . 208 70 . 897 Core 267 | . 32 14 . 221 Absorbed by Shields . | . . . . . Regen/Repaired (Parts) 57 | . 57 . . . Core Remaining (%) 100 | 100 . . . . Volleys Fired 59 | 18 22 3 . 16 Largest 2 | 2 2 2 . 2 Hottest 130 | 60 130 95 . 95 Shots Fired 91 | 23 41 4 . 23 Gun 77 | 23 37 3 . 14 Cannon . | . . . . . Launcher 14 | . 4 1 . 9 Special . | . . . . . Kinetic 5 | 5 . . . . Thermal 72 | 18 37 3 . 14 Explosive 14 | . 4 1 . 9 Electromagnetic . | . . . . . Robot Hit Streak 5 | 4 5 2 . 5 Robot Miss Streak 13 | 4 6 13 . 7 Penetration Max . | . . . . . Secondary Targets . | . . . . . Shots Hit Robots 56 | 9 28 2 . 17 Core Hits 76 | 4 36 5 . 31 Critical Kills . | . . . . . Critical Parts Destroyed . | . . . . . Critical Strikes 1 | . 1 . . . Burn 1 | . 1 . . . Melee Attacks . | . . . . . Impact . | . . . . . Slashing . | . . . . . Piercing . | . . . . . Sneak Attacks . | . . . . . Combat Hostiles . | . . . . . Follow-up Attacks . | . . . . . Damage Inflicted 2008 | 134 839 184 . 851 Guns 578 | 134 304 24 . 116 Cannons . | . . . . . Explosions 1430 | . 535 160 . 735 Melee . | . . . . . Ramming . | . . . . . Kinetic 26 | 26 . . . . Thermal 552 | 108 304 24 . 116 Explosive 1430 | . 535 160 . 735 Electromagnetic . | . . . . . Impact . | . . . . . Slashing . | . . . . . Piercing . | . . . . . Highest Corruption 4 | . . . . 4 Average Corruption 4 | . . . . 4 Corruption Purged . | . . . . . Corruption Blocked . | . . . . . Effects 2 | . . . . 2 Message Errors 1 | . . . . 1 Weapon Failures 1 | . . . . 1 Overload Shots . | . . . . . Overflow Damage 55 | . . 10 . 45 Projectiles . | . . . . . Explosions 55 | . . 10 . 45 Melee . | . . . . . Knockbacks . | . . . . . Impact . | . . . . . Kinetic . | . . . . . Secondary . | . . . . . Self-Inflicted Damage 190 | . . 30 . 160 Shots 6 | . . 1 . 5 Rammed . | . . . . . Targets Rammed . | . . . . . Kicked . | . . . . . Crushed . | . . . . . Highest Temperature 174 | . 174 11 . 163 Average Temperature 58 | . 58 6 . 64 Received Heat Transfer 63 | . 63 . . . Siege Activations . | . . . . . Robots Corrupted . | . . . . . Combat Hostiles . | . . . . . Parts Fried . | . . . . . Impact Corruptions . | . . . . . Robots Melted . | . . . . . Combat Hostiles . | . . . . . Parts Melted . | . . . . . Heat Transferred 1055 | 250 620 30 . 155 Parts Sabotaged . | . . . . . Parts Stolen . | . . . . . Parts Stripped . | . . . . . Power Chain Reactions . | . . . . . Alert | -11 -10 -10 -10 -9 ------- Run | Yrd Mat Min Exi Min Peak Influence 193 | 15 193 103 . 26 Initial 24 | . 9 24 . . Average 60 | 5 69 56 . 8 Maximum Alert Level . | . . . . . Low Security (%) 100 | 100 100 100 . 100 Level 1 . | . . . . . Level 2 . | . . . . . Level 3 . | . . . . . Level 4 . | . . . . . Level 5 . | . . . . . High Security . | . . . . . Max Security . | . . . . . Squads Dispatched 1 | . 1 . . . Investigation 1 | . 1 . . . Extermination . | . . . . . Reinforcement . | . . . . . Assault . | . . . . . Garrison . | . . . . . Intercept . | . . . . . Searches Triggered . | . . . . . Construction Impeded . | . . . . . Haulers Reinforced . | . . . . . Active Scanning Responses . | . . . . . Cargo Convoy Interrupts . | . . . . . Stealth | -11 -10 -10 -10 -9 --------- Run | Yrd Mat Min Exi Min Distress Signals . | . . . . . Communications Jammed . | . . . . . Distress Signals . | . . . . . Times Spotted 41 | . 20 6 . 15 Peak Tracking Total 7 | . 4 3 . 7 Tactical Retreats . | . . . . . Traps | -11 -10 -10 -10 -9 ------- Run | Yrd Mat Min Exi Min Traps Triggered 1 | . 1 . . . Indirectly . | . . . . . Trap Hack Attempts . | . . . . . Triggered . | . . . . . Disarmed . | . . . . . Reprogrammed . | . . . . . Reused . | . . . . . Traps Extracted . | . . . . . Installed . | . . . . . Triggered . | . . . . . Machines | -11 -10 -10 -10 -9 ---------- Run | Yrd Mat Min Exi Min Machines Disabled . | . . . . . Max in Single Turn . | . . . . . Machines Repaired . | . . . . . Machines Dismantled . | . . . . . Machines Sabotaged . | . . . . . Overloaded Fab Kills . | . . . . . Hacking | -11 -10 -10 -10 -9 --------- Run | Yrd Mat Min Exi Min Machines Accessed 11 | . 10 . 1 . Terminals 8 | . 8 . . . Fabricators . | . . . . . Repair Stations 1 | . 1 . . . Recycling Units 1 | . 1 . . . Scanalyzers . | . . . . . Garrison Access . | . . . . . Total Hacks 24 | . 23 . 1 . Successful 10 | . 9 . 1 . Failed 14 | . 14 . . . Catastrophic 4 | . 4 . . . Database Lockouts . | . . . . . Manual 9 | . 8 . 1 . Terminals 18 | . 18 . . . Fabricators . | . . . . . Repair Stations 4 | . 4 . . . Recycling Units 1 | . 1 . . . Scanalyzers . | . . . . . Garrison Access . | . . . . . Terminal Hacks 5 | . 4 . 1 . Prototype ID Bank 1 | . 1 . . . Locate Traps 1 | . 1 . . . Hauler Manifests 2 | . 2 . . . Derelict Proto ID Bank 1 | . . . 1 . Fabricator Hacks . | . . . . . Repair Station Hacks 3 | . 3 . . . Scan Component 2 | . 2 . . . Repair 1 | . 1 . . . Recycling Unit Hacks . | . . . . . Scanalyzer . | . . . . . Garrison Access Hacks . | . . . . . Unauthorized Hacks 2 | . 2 . . . Terminals 1 | . 1 . . . Operators 1 | . 1 . . . Fabricators . | . . . . . Repair Stations . | . . . . . Recycling Units 1 | . 1 . . . Tunnel 1 | . 1 . . . Scanalyzers . | . . . . . Garrison Access . | . . . . . Data Cores Recovered . | . . . . . Used . | . . . . . Hacking Detections 9 | . 9 . . . Full Trace Events . | . . . . . Feedback Events . | . . . . . Feedback Blocked . | . . . . . Robot Schematics Acquired . | . . . . . Robots Built . | . . . . . Authchips . | . . . . . Time . | . . . . . Total Robot Build Rating . | . . . . . Part Schematics Acquired . | . . . . . Parts Built . | . . . . . Authchips . | . . . . . Time . | . . . . . Total Part Build Rating . | . . . . . Parts Repaired 1 | . 1 . . . Time 32 | . 32 . . . Parts Recycled . | . . . . . Recycled Matter . | . . . . . Retrieved Matter . | . . . . . Retrieved Components . | . . . . . Parts Scanalyzed . | . . . . . Part Schematics Acquired . | . . . . . Parts Damaged . | . . . . . Bothacking | -11 -10 -10 -10 -9 ------------ Run | Yrd Mat Min Exi Min Used RIF Installer . | . . . . . Robots Hacked . | . . . . . Non-combat . | . . . . . Combat . | . . . . . Robot Hacks Applied . | . . . . . Relay Couplers Released . | . . . . . Fabnet Peak Effective % . | . . . . . Robots Rewired . | . . . . . Allies Hacked . | . . . . . Hacks Repelled . | . . . . . Allies | -11 -10 -10 -10 -9 -------- Run | Yrd Mat Min Exi Min Total Allies . | . . . . . Largest Group . | . . . . . Highest-Rated Group . | . . . . . Highest-Rated Ally . | . . . . . Total Orders . | . . . . . Ally Attacks . | . . . . . Total Damage . | . . . . . Kills . | . . . . . Allies Corrupted . | . . . . . Allies Melted . | . . . . . Intel | -11 -10 -10 -10 -9 ------- Run | Yrd Mat Min Exi Min Robot Analysis Total . | . . . . . Derelict Logs Recovered 1 | . . 1 . . Drone Launches . | . . . . . Drone Recoveries . | . . . . . Exploration | -11 -10 -10 -10 -9 ------------- Run | Yrd Mat Min Exi Min Turns Passed 2523 | 125 1379 234 699 86 Spaces Moved 1847 | 68 985 190 572 32 Core . | . . . . . Treads . | . . . . . Legs 1847 | 68 985 190 572 32 Wheels . | . . . . . Hover . | . . . . . Flight . | . . . . . Fastest Speed 120 | 120 120 120 120 120 Average Speed 120 | 120 120 120 120 133 Slowest Speed 190 | 120 120 120 190 190 Overloaded Moves . | . . . . . Propulsion Burnouts . | . . . . . Robots Hopped . | . . . . . Cave-ins Triggered . | . . . . . Exploration Rate (%) 49 | 6 97 53 79 12 Regions Visited 4 Branch Regions 3 Pre-discovered Areas 2 | . 1 1 . . Known Exits Taken . | . . . . . Unknown Exits Taken 4 | 1 1 1 1 . Scrap Searched . | . . . . . Spaces Dug . | . . . . . Terrain Destroyed 113 | . 20 11 . 82 Melee . | . . . . . Projectile . | . . . . . AOE 113 | . 20 11 . 82 Terrain Rammed . | . . . . . Walls Destroyed . | . . . . . Machines Disabled . | . . . . . Actions | -11 -10 -10 -10 -9 --------- Run | Yrd Mat Min Exi Min Total 2062 | 88 1146 192 584 52 Wait 90 | . 90 . . . Move 1843 | 67 984 189 571 32 Hop . | . . . . . Pick Up 24 | 2 15 . 7 . Fast Attach 4 | 1 2 . 1 . Attach 4 | . . . . 4 Detach . | . . . . . Swap 15 | . 14 . 1 . Drop 23 | . 19 . 4 . Fire 59 | 18 22 3 . 16 Melee . | . . . . . Ram . | . . . . . Kick . | . . . . . Crush . | . . . . . Escape Stasis . | . . . . . Rewire . | . . . . . Trap . | . . . . . Miscellaneous . | . . . . . Route ------- -11/Scrapyard -10/Materials (discovered 5 exits: [*Mat x3] / [*Min x2]) -10/Mines (discovered 2 exits: [*Mat] / *Exi) -10/Exiles (discovered 2 exits: [*Min x2]) -9/Mines History --------- Turn | Location | Event 1 | -11/Scrapyard | Discovered new exit (range 3) 126 | -11/Scrapyard | Entered Materials 217 | -10/Materials | Discovered new exit (range 6) 330 | -10/Materials | Build established: Mutant 520 | -10/Materials | Discovered new exit (range 13) 1067 | -10/Materials | Discovered new exit (range 12) 1250 | -10/Materials | Discovered new exit (range 10) 1343 | -10/Materials | Repaired Imp. Aluminum Leg 1359 | -10/Materials | Discovered new exit (range 12) 1505 | -10/Materials | Entered Mines 1593 | -10/Mines | Discovered new exit (range 12) 1597 | -10/Mines | Met a Derelict bent on vengeance 1718 | -10/Mines | Deemed a non-threat by the Exiles lab entrance 1718 | -10/Mines | Discovered new exit (range 5) 1739 | -10/Mines | Entered Exiles 1759 | -10/Exiles | Discovered new exit (range 15) 1772 | -10/Exiles | Met 8R-AWN 1786 | -10/Exiles | Met EX-HEX 1839 | -10/Exiles | Met EX-BIN 1857 | -10/Exiles | Aligned with FarCom system 1858 | -10/Exiles | Given EX-Vault access code 1886 | -10/Exiles | Opened EX-Vault 1901 | -10/Exiles | Found Modified TNC 1927 | -10/Exiles | Warned to stay clear of 0b10 Research branches 2016 | -10/Exiles | Met EX-DEC 2043 | -10/Exiles | Visited The Gauntlet 2424 | -10/Exiles | Discovered new exit (range 14) 2438 | -10/Exiles | Left Exiles lab with Modified TNC 2438 | -10/Exiles | Entered Mines 2439 | -9/Mines | Assembled infested the area 2496 | -9/Mines | Core integrity fell below 50% 2505 | -9/Mines | Destroyed 10 combat bots 2510 | -9/Mines | Core integrity fell below 20% 2524 | -9/Mines | Destroyed by D-53 Grenadier with Mini Grenade Launcher Last Messages --------------- 02481_ The unstable cave ceiling collapses. 02483_ OEA3H:84AHQ 02496_ Destroyed Asb. Hover Unit. 02498_ The unstable cave ceiling collapses. 02500_ D-53 Grenadier unfolds itself. 02501_ The unstable cave ceiling collapses. 02503_ Ion Engine destroyed. 02503_ Spread Laser destroyed. 02503_ Imp. Aluminum Leg destroyed. 02503_ as-30329 destroyed. 02507_ The unstable cave ceiling collapses. 02509_ Ion Engine destroyed. 02510_ The unstable cave ceiling collapses. 02510_ Mni. Grenade Launcher destroyed. 02510_ Destroyed Mni. Grenade Launcher. 02514_ The unstable cave ceiling collapses. 02518_ Imp. Aluminum Leg destroyed. 02519_ The unstable cave ceiling collapses. Map ----- +----------------------------------------------------+ | ?????????????????????????????????????????????????? | | ?????????????????????????????????????????????????? | | ?????????????????????????????????????????????????? | | ?????????????????????????????????????????????????? | | ??????????????#######????????????????????????????? | | ?????????????## ##???????????????????????????? | | ?????????????# #???????????????????????????? | | ?????????????# #???????????????????????????? | | ?????????????# #???????????????????????????? | | ????????????## #???????????????????????????? | | ???????????## #???????????????????????????? | | ???????????# # #????????????????????????????? | | ??????????## ###### ????????????????????? | | ??????????# # # ???????????????????? | | ??????????## #??????????????????????????? | | ?????????## # #??????????????????????????? | | ?????????# # #??????????????????????????? | | ????????## # ### #??????????????????????????? | | ????????# # ## ##?????????????????????????? | | ????????# # #?????????????????????????? | | ?????# ## #?????????????????????????? | | ?????#"% d # ##????????????????????????? | | ?????##### d #????????????????????????? | | ?????????## ####??????????????????????? | | ??????????## # # #?????????????????? | | ???????????### @ #?????????????????? | | ????????????## ## ##?????????????????? | | ?????????????# #### #??????????????????? | | ?????????????# ? # #??????????????????? | | ?????????????######## #####??????????????????? | | ????????????????????## #??????????????????????? | | ?????????????????????### ??????????????????????? | | ???????????????????????## ?????????????????????? | | ?????????????????????????# ????????????????????? | | ??????????????????????????# #????????????????????? | | ???????????????????????????#?????????????????????? | | ?????????????????????????????????????????????????? | | | | | | | | | | | | | | | | | | | | | | | | | | | +----------------------------------------------------+ Best States ------------- Heat Dissipation 35 Energy Generation 10 Energy Capacity 250 Matter Stores 300 Matter Capacity 300 Sight Range 16 Terrain Scan Density 10 Evasion (%) 55 Item Schematics ----------------- None Robot Schematics ------------------ None Fabricated ------------ Nothing Alien Tech Used ----------------- None Achievements -------------- None Challenges ------------ None Game ------ Seed FactoryAntimatterPurifier Manual? 0 Play Time 00:25:22 Cumulative 357.1 hours Start 2024.05.03 @ 17:45:36 End 2024.05.03 @ 18:16:48 Sessions 1 Manual Loads 0 Difficulty Rogue Special Mode None Game No. 119 Rogue 80 Adventurer 0 Explorer 39 Win Type - Total 11 Types 9/1/1/0/0/0/0/0/0 Lore% 71 Gallery% 76 Achievement% 67 Wizard Run 0 Options --------- Layout 0 ASCII 1 Keyboard 1 Movement Arrows Keybinds 0 Fullscreen 2 Font 36/Smallcaps Map View 76x50 Zoom Use 0% Tactical HUD 1 Map Filters NONE Filters NONE Steam 1 RUN: 26e67cea-ccfa-4417-b4e9-184a6c85a2f4